[Event "Serbian League Women 2024"]
[Site "Bajina Basta"]
[Date "2024.09.30"]
[Round "4.14"]
[White "Roebers, Eline"]
[Black "Prudnikova, Svetlana"]
[Result "1-0"]
[ECO "C22"]
[WhiteElo "2340"]
[BlackElo "2117"]
[Annotator "RC"]
[PlyCount "95"]
[EventDate "2024.09.26"]
[EventType "team-tourn"]
[EventCountry "SRB"]
[SourceTitle "playchess.com"]
[Source "ChessBase"]
[SourceQuality "1"]
[TimeControl "40/5400+30:1800+30"]

1. e4 {[%emt 0:00:03]} e5 {[%emt 0:00:06]} 2. d4 {[%emt 0:00:03]} exd4 {[%emt 0:00:29]} 3. Qxd4 {[%emt 0:00:05]} Nc6 {[%emt 0:00:19]} 4. Qd3 {[%emt 0:00:03]} Nf6 {[%emt 0:00:48]} 5. Nc3 {[%emt 0:00:06]} Bb4 {[%emt 0:00:39]} 6. Bd2 {[%emt 0:00:04]} O-O {[%emt 0:01:43]} 7. O-O-O {[%emt 0:00:06]} Re8 {[%emt 0:01:28]} 8. Nge2 {[%emt 0:00:11]} d6 {[%emt 0:01:48]} 9. Bg5 {[%emt 0:00:06]} h6 {[%emt 0:01:46]} 10. Bxf6 {[%emt 0:00:06]} Qxf6 {[%emt 0:00:02]} 11. Nd5 {[%emt 0:00:07]} Qd8 {[%emt 0:00:09]} 12. Nxb4 {[%emt 0:00:05]} Nxb4 {[%emt 0:00:10]} 13. Qd2 {[%emt 0:00:03]} a5 {[%emt 0:05:00]} 14. Nc3 {[%emt 0:00:22]} Bd7 {[%emt 0:08:44]} 15. f3 {[%emt 0:03:05]} Qg5 {[%emt 0:06:00]} 16. Qxg5 {[%emt 0:02:51]} hxg5 {[%emt 0:00:02]} 17. g4 {[%emt 0:03:30]} Nc6 {[%emt 0:21:46]} 18. Nd5 {[%emt 0:03:36]} Rac8 {[%emt 0:00:46]} 19. h4 {[%emt 0:00:04]} gxh4 {[%emt 0:05:19]} 20. Rxh4 {[%emt 0:00:05]} Ne7 {[%emt 0:00:31]} 21. Ne3 {[%emt 0:07:22]} Ng6 {[%emt 0:01:15]} 22. Rh5 {[%emt 0:11:20]} Re5 {[%emt 0:06:26]} 23. Nc4 {[%emt 0:00:18]} Rxh5 {[%emt 0:01:17]} 24. gxh5 {[%emt 0:00:06]} Nf4 {[%emt 0:00:05]} 25. e5 {[%emt 0:02:06]} d5 {[%emt 0:08:37]} 26. Rd4 {[%emt 0:07:21]} Nxh5 {[%emt 0:10:39]} 27. Rxd5 {[%emt 0:12:45]} Bc6 {[%emt 0:00:57]} 28. Rxa5 {[%emt 0:00:04]} Ng3 {[%emt 0:00:31]} 29. Bd3 {[%emt 0:00:56]} Bxf3 {[%emt 0:00:27]} 30. Rc5 {[%emt 0:01:44]} Bg4 {[%emt 0:17:41]} 31. Ne3 {[%emt 0:01:00]} Be6 {[%emt 0:00:00]} 32. Nd5 {[%emt 0:00:05]} Bxd5 {[%emt 0:00:00]} 33. Rxd5 {[%emt 0:02:06]} Kf8 {[%emt 0:00:00]} 34. Rd7 {[%emt 0:00:57]} Ke8 {[%emt 0:00:00]} 35. e6 {[%emt 0:01:43]} fxe6 {[%emt 0:00:00]} 36. Rxg7 {[%emt 0:00:03]} Nf5 {[%emt 0:00:00]} 37. Bxf5 {[%emt 0:01:56]} exf5 {[%emt 0:00:00]} 38. Rh7 {[%emt 0:00:06]} b5 {[%emt 0:00:00]} 39. a3 {[%emt 0:05:51]} c5 {[%emt 0:00:48]} 40. Rh8+ {[%emt 0:01:28]} Kd7 {[%emt 0:00:01]} 41. Rxc8 {[%emt 0:30:09]} Kxc8 {[%emt 0:30:02]} 42. b3 {[%emt 0:07:02]} Kc7 {[%emt 0:00:00]} 43. Kd2 {[%emt 0:00:00]} Kd6 {[%emt 0:00:00]} 44. c4 {[%emt 0:00:00]} bxc4 {[%emt 0:00:00]} 45. bxc4 {[%emt 0:00:00]} Ke5 {[%emt 0:00:00]} 46. a4 {[%emt 0:00:00]} Kd6 {[%emt 0:05:32]} 47. Ke3 {[%emt 0:00:00]} Ke5 {[%emt 0:00:16]} 48. Kf3 {[%emt 0:00:00]} 1-0

[Event "Serbian League Women 2024"]
[Site "Bajina Basta"]
[Date "2024.09.30"]
[Round "4.15"]
[White "Radenkovic, Mila"]
[Black "Maksimovic, Suzana"]
[Result "1/2-1/2"]
[ECO "B31"]
[WhiteElo "1910"]
[BlackElo "2052"]
[Annotator "RC"]
[PlyCount "73"]
[EventDate "2024.09.26"]
[EventType "team-tourn"]
[EventCountry "SRB"]
[SourceTitle "playchess.com"]
[Source "ChessBase"]
[SourceQuality "1"]
[TimeControl "40/5400+30:1800+30"]

1. e4 {[%emt 0:00:04]} c5 {[%emt 0:00:14]} 2. Nf3 {[%emt 0:00:22]} Nc6 {[%emt 0:00:29]} 3. Bb5 {[%emt 0:02:35]} g6 {[%emt 0:01:04]} 4. Bxc6 {[%emt 0:01:26]} dxc6 {[%emt 0:00:08]} 5. d3 {[%emt 0:00:58]} Qc7 {[%emt 0:03:15]} 6. h3 {[%emt 0:02:10]} e5 {[%emt 0:00:19]} 7. Be3 {[%emt 0:03:34]} Nf6 {[%emt 0:02:48]} 8. Nc3 {[%emt 0:01:09]} h6 {[%emt 0:00:36]} 9. Qd2 {[%emt 0:03:56]} Be6 {[%emt 0:01:05]} 10. O-O-O {[%emt 0:12:54]} O-O-O {[%emt 0:07:01]} 11. a3 {[%emt 0:08:14]} b5 {[%emt 0:23:22]} 12. Qe1 {[%emt 0:04:51]} Nd7 {[%emt 0:04:22]} 13. Ne2 {[%emt 0:02:48]} Be7 {[%emt 0:07:51]} 14. g3 {[%emt 0:03:54]} Kb7 {[%emt 0:11:48]} 15. Nd2 {[%emt 0:01:54]} a5 {[%emt 0:04:03]} 16. f4 {[%emt 0:01:40]} f6 {[%emt 0:00:10]} 17. g4 {[%emt 0:05:22]} a4 {[%emt 0:05:23]} 18. Nb1 {[%emt 0:09:13]} g5 {[%emt 0:10:42]} 19. f5 {[%emt 0:01:28]} Bf7 {[%emt 0:00:12]} 20. h4 {[%emt 0:01:51]} c4 {[%emt 0:01:13]} 21. h5 {[%emt 0:14:16]} cxd3 {[%emt 0:00:50]} 22. Rxd3 {[%emt 0:00:08]} Nc5 {[%emt 0:00:38]} 23. Rxd8 {[%emt 0:01:06]} Rxd8 {[%emt 0:00:30]} 24. Nec3 {[%emt 0:00:48]} Nd7 {[%emt 0:01:40]} 25. Qf2 {[%emt 0:01:17]} Nb6 {[%emt 0:01:45]} 26. Nd2 {[%emt 0:01:46]} Nc4 {[%emt 0:02:28]} 27. Nxc4 {[%emt 0:04:55]} Bxc4 {[%emt 0:00:03]} 28. Rd1 {[%emt 0:04:04]} Rxd1+ {[%emt 0:01:17]} 29. Kxd1 {[%emt 0:00:13]} Qd6+ {[%emt 0:03:35]} 30. Ke1 {[%emt 0:02:12]} c5 {[%emt 0:02:11]} 31. Qd2 {[%emt 0:01:29]} Qxd2+ {[%emt 0:00:50]} 32. Kxd2 {[%emt 0:00:28]} Kc6 {[%emt 0:00:08]} 33. Ke1 {[%emt 0:01:56]} Bd8 {[%emt 0:02:18]} 34. Bd2 {[%emt 0:00:11]} Be7 {[%emt 0:01:32]} 35. Be3 {[%emt 0:00:45]} Bd8 {[%emt 0:00:57]} 36. Bd2 {[%emt 0:00:06]} Be7 {[%emt 0:00:34]} 37. Be3 {[%emt 0:00:25]} 1/2-1/2

[Event "Serbian League Women 2024"]
[Site "Bajina Basta"]
[Date "2024.09.30"]
[Round "4.16"]
[White "Tomin, Ksenija"]
[Black "Mijic, Sara"]
[Result "0-1"]
[ECO "C26"]
[WhiteElo "2039"]
[BlackElo "1993"]
[Annotator "RC"]
[PlyCount "118"]
[EventDate "2024.09.26"]
[EventType "team-tourn"]
[EventCountry "SRB"]
[SourceTitle "playchess.com"]
[Source "ChessBase"]
[SourceQuality "1"]
[TimeControl "40/5400+30:1800+30"]

1. e4 {[%emt 0:00:04]} e5 {[%emt 0:00:28]} 2. Nc3 {[%emt 0:00:15]} Nf6 {[%emt 0:01:36]} 3. g3 {[%emt 0:00:37]} Bc5 {[%emt 0:01:36]} 4. Bg2 {[%emt 0:00:24]} d6 {[%emt 0:05:20]} 5. Nge2 {[%emt 0:01:20]} O-O {[%emt 0:03:46]} 6. O-O {[%emt 0:00:44]} Be6 {[%emt 0:04:04]} 7. h3 {[%emt 0:05:01]} Nc6 {[%emt 0:02:50]} 8. Na4 {[%emt 0:09:13]} Qe7 {[%emt 0:17:23]} 9. Nxc5 {[%emt 0:15:03]} dxc5 {[%emt 0:00:11]} 10. b3 {[%emt 0:07:12]} a5 {[%emt 0:10:22]} 11. a4 {[%emt 0:04:45]} Rfd8 {[%emt 0:01:38]} 12. d3 {[%emt 0:02:07]} Ne8 {[%emt 0:10:43]} 13. f4 {[%emt 0:03:46]} f6 {[%emt 0:03:24]} 14. f5 {[%emt 0:03:28]} Bf7 {[%emt 0:00:17]} 15. g4 {[%emt 0:01:09]} Nb4 {[%emt 0:04:16]} 16. Rf3 {[%emt 0:04:07]} c4 {[%emt 0:03:13]} 17. bxc4 {[%emt 0:00:42]} Bxc4 {[%emt 0:00:42]} 18. Ba3 {[%emt 0:04:43]} c5 {[%emt 0:02:15]} 19. Qb1 {[%emt 0:01:40]} Ba6 {[%emt 0:09:56]} 20. Kh2 {[%emt 0:15:58]} Qd7 {[%emt 0:05:21]} 21. Nc3 {[%emt 0:01:12]} Nc7 {[%emt 0:01:23]} 22. h4 {[%emt 0:01:28]} b5 {[%emt 0:03:01]} 23. axb5 {[%emt 0:02:17]} Nxb5 {[%emt 0:00:47]} 24. Bxb4 {[%emt 0:03:01]} axb4 {[%emt 0:02:38]} 25. Nd5 {[%emt 0:00:21]} Bb7 {[%emt 0:02:02]} 26. Rxa8 {[%emt 0:01:29]} Bxa8 {[%emt 0:00:07]} 27. Ne3 {[%emt 0:02:23]} Nd4 {[%emt 0:00:47]} 28. Rf2 {[%emt 0:00:09]} Bc6 {[%emt 0:00:28]} 29. Qd1 {[%emt 0:03:17]} Nb5 {[%emt 0:00:26]} 30. g5 {[%emt 0:00:50]} Qe7 {[%emt 0:04:30]} 31. Ng4 {[%emt 0:02:44]} Be8 {[%emt 0:00:00]} 32. gxf6 {[%emt 0:01:25]} gxf6 {[%emt 0:00:00]} 33. Bf3 {[%emt 0:00:54]} Kh8 {[%emt 0:00:00]} 34. Qg1 {[%emt 0:01:29]} Bh5 {[%emt 0:00:07]} 35. Ne3 {[%emt 0:00:25]} Bxf3 {[%emt 0:00:16]} 36. Rxf3 {[%emt 0:00:08]} Nd4 {[%emt 0:00:07]} 37. Rf1 {[%emt 0:01:17]} Rg8 {[%emt 0:00:37]} 38. Qf2 {[%emt 0:00:09]} Qg7 {[%emt 0:00:42]} 39. Re1 {[%emt 0:01:10]} Qh6 {[%emt 0:00:23]} 40. Rf1 {[%emt 0:00:48]} Qh5 {[%emt 0:00:43]} 41. Kh3 {[%emt 0:02:50]} Ne2 {[%emt 0:01:34]} 42. Re1 {[%emt 0:02:26]} Rg3+ {[%emt 0:02:43]} 43. Qxg3 {[%emt 0:00:11]} Nxg3 {[%emt 0:00:06]} 44. Kxg3 {[%emt 0:00:06]} Qh6 {[%emt 0:00:19]} 45. Nd5 {[%emt 0:03:11]} Qd2 {[%emt 0:00:51]} 46. Ra1 {[%emt 0:00:40]} Qxc2 {[%emt 0:08:03]} 47. Ra8+ {[%emt 0:00:53]} Kg7 {[%emt 0:00:06]} 48. Ra7+ {[%emt 0:00:14]} Kf8 {[%emt 0:00:54]} 49. Ra8+ {[%emt 0:00:53]} Kf7 {[%emt 0:00:50]} 50. Ra7+ {[%emt 0:00:20]} Ke8 {[%emt 0:02:05]} 51. Nxf6+ {[%emt 0:03:30]} Kd8 {[%emt 0:00:07]} 52. Rxh7 {[%emt 0:03:34]} b3 {[%emt 0:01:16]} 53. Rh8+ {[%emt 0:00:11]} Kc7 {[%emt 0:00:33]} 54. Nd5+ {[%emt 0:00:07]} Kb7 {[%emt 0:00:07]} 55. f6 {[%emt 0:01:33]} Qxd3+ {[%emt 0:00:15]} 56. Kf2 {[%emt 0:00:21]} Qd2+ {[%emt 0:01:27]} 57. Kg3 {[%emt 0:00:24]} Qe1+ {[%emt 0:00:10]} 58. Kh2 {[%emt 0:00:47]} Qf2+ {[%emt 0:00:08]} 59. Kh3 {[%emt 0:00:32]} b2 {[%emt 0:00:37]} 0-1

[Event "Serbian League Women 2024"]
[Site "Bajina Basta"]
[Date "2024.09.30"]
[Round "4.17"]
[White "Chelushkina, Irina"]
[Black "Pogorelskikh, Sofia"]
[Result "0-1"]
[ECO "A07"]
[WhiteElo "2167"]
[BlackElo "2176"]
[Annotator "RC"]
[PlyCount "108"]
[EventDate "2024.09.26"]
[EventType "team-tourn"]
[EventCountry "SRB"]
[SourceTitle "playchess.com"]
[Source "ChessBase"]
[SourceQuality "1"]
[TimeControl "40/5400+30:1800+30"]

1. Nf3 {[%emt 0:00:17]} d5 {[%emt 0:00:22]} 2. g3 {[%emt 0:00:11]} g6 {[%emt 0:00:14]} 3. Bg2 {[%emt 0:00:04]} Bg7 {[%emt 0:00:13]} 4. O-O {[%emt 0:01:23]} e5 {[%emt 0:00:59]} 5. d3 {[%emt 0:00:04]} Ne7 {[%emt 0:02:09]} 6. c4 {[%emt 0:03:02]} O-O {[%emt 0:13:45]} 7. cxd5 {[%emt 0:03:50]} Nxd5 {[%emt 0:00:50]} 8. Bg5 {[%emt 0:00:06]} Qd6 {[%emt 0:05:33]} 9. Na3 {[%emt 0:02:02]} h6 {[%emt 0:04:42]} 10. Bd2 {[%emt 0:04:16]} Nc6 {[%emt 0:02:01]} 11. Nc4 {[%emt 0:01:28]} Qd8 {[%emt 0:04:16]} 12. Rb1 {[%emt 0:00:19]} Nb6 {[%emt 0:04:35]} 13. b3 {[%emt 0:09:52]} Be6 {[%emt 0:04:56]} 14. Qc1 {[%emt 0:02:02]} Kh7 {[%emt 0:02:16]} 15. Bc3 {[%emt 0:00:51]} Bd5 {[%emt 0:20:55]} 16. Rd1 {[%emt 0:12:13]} Nd4 {[%emt 0:02:37]} 17. Qb2 {[%emt 0:03:16]} Bxf3 {[%emt 0:05:02]} 18. Bxf3 {[%emt 0:03:54]} Nd5 {[%emt 0:01:31]} 19. Bxd5 {[%emt 0:00:23]} Qxd5 {[%emt 0:00:17]} 20. e4 {[%emt 0:00:36]} Qd7 {[%emt 0:02:17]} 21. Bxd4 {[%emt 0:00:58]} exd4 {[%emt 0:00:26]} 22. f4 {[%emt 0:02:36]} b5 {[%emt 0:02:54]} 23. Nd2 {[%emt 0:01:10]} c5 {[%emt 0:00:46]} 24. Nf3 {[%emt 0:02:08]} Rfc8 {[%emt 0:03:05]} 25. Rbc1 {[%emt 0:00:38]} a5 {[%emt 0:02:16]} 26. Qg2 {[%emt 0:18:14]} a4 {[%emt 0:01:58]} 27. Rf1 {[%emt 0:01:28]} axb3 {[%emt 0:01:19]} 28. axb3 {[%emt 0:00:01]} Qe6 {[%emt 0:01:34]} 29. Nd2 {[%emt 0:00:46]} Ra2 {[%emt 0:01:16]} 30. f5 {[%emt 0:01:48]} Qe7 {[%emt 0:01:00]} 31. Rf2 {[%emt 0:05:54]} Qg5 {[%emt 0:03:28]} 32. Re1 {[%emt 0:00:41]} Kg8 {[%emt 0:01:48]} 33. fxg6 {[%emt 0:13:45]} Qxg6 {[%emt 0:00:47]} 34. Ref1 {[%emt 0:01:50]} Rc7 {[%emt 0:00:24]} 35. Qh3 {[%emt 0:01:34]} Qg5 {[%emt 0:02:03]} 36. Qh4 {[%emt 0:01:40]} Qxh4 {[%emt 0:00:42]} 37. gxh4 {[%emt 0:00:01]} Rca7 {[%emt 0:01:26]} 38. Rg2 {[%emt 0:01:59]} Rb2 {[%emt 0:00:49]} 39. Rff2 {[%emt 0:01:09]} Ra1+ {[%emt 0:00:26]} 40. Rf1 {[%emt 0:00:57]} Raa2 {[%emt 0:00:43]} 41. Rff2 {[%emt 0:30:01]} h5 {[%emt 0:08:08]} 42. Nf1 {[%emt 0:00:00]} Rxf2 {[%emt 0:01:38]} 43. Rxf2 {[%emt 0:00:00]} Ra3 {[%emt 0:01:11]} 44. Rf5 {[%emt 0:00:00]} Rxb3 {[%emt 0:02:16]} 45. Rxc5 {[%emt 0:00:00]} b4 {[%emt 0:01:09]} 46. Rxh5 {[%emt 0:00:00]} Rxd3 {[%emt 0:00:32]} 47. Rb5 {[%emt 0:00:00]} b3 {[%emt 0:06:04]} 48. Kf2 {[%emt 0:00:00]} Bh6 {[%emt 0:01:43]} 49. Ng3 {[%emt 0:00:00]} Bc1 {[%emt 0:05:41]} 50. Nf5 {[%emt 0:00:00]} b2 {[%emt 0:01:13]} 51. h5 {[%emt 0:00:00]} Ra3 {[%emt 0:01:25]} 52. Rb8+ {[%emt 0:00:00]} Kh7 {[%emt 0:00:09]} 53. Rb7 {[%emt 0:00:00]} Ra1 {[%emt 0:01:24]} 54. Rxf7+ {[%emt 0:00:03]} Kg8 {[%emt 0:00:36]} 0-1

[Event "Serbian League Women 2024"]
[Site "Bajina Basta"]
[Date "2024.09.30"]
[Round "4.18"]
[White "Zherebtsova, Alexandra"]
[Black "Borisova, Ekaterina"]
[Result "0-1"]
[ECO "B44"]
[WhiteElo "2239"]
[BlackElo "2205"]
[Annotator "RC"]
[PlyCount "70"]
[EventDate "2024.09.26"]
[EventType "team-tourn"]
[EventCountry "SRB"]
[SourceTitle "playchess.com"]
[Source "ChessBase"]
[SourceQuality "1"]
[TimeControl "40/5400+30:1800+30"]

1. c4 {[%emt 0:00:02]} c5 {[%emt 0:00:06]} 2. Nf3 {[%emt 0:00:14]} Nc6 {[%emt 0:00:34]} 3. d4 {[%emt 0:00:34]} cxd4 {[%emt 0:00:22]} 4. Nxd4 {[%emt 0:00:05]} Nf6 {[%emt 0:00:14]} 5. Nc3 {[%emt 0:00:41]} e6 {[%emt 0:00:09]} 6. Ndb5 {[%emt 0:09:31]} d6 {[%emt 0:14:05]} 7. e4 {[%emt 0:13:01]} a6 {[%emt 0:00:50]} 8. Na3 {[%emt 0:00:05]} Be7 {[%emt 0:01:52]} 9. Be2 {[%emt 0:01:15]} O-O {[%emt 0:00:27]} 10. O-O {[%emt 0:01:31]} b6 {[%emt 0:11:13]} 11. Be3 {[%emt 0:22:50]} Bb7 {[%emt 0:00:30]} 12. Re1 {[%emt 0:06:29]} Ne5 {[%emt 0:05:34]} 13. Qd4 {[%emt 0:07:03]} Ned7 {[%emt 0:06:09]} 14. Bf3 {[%emt 0:03:04]} Rc8 {[%emt 0:05:09]} 15. Rac1 {[%emt 0:05:08]} Qc7 {[%emt 0:02:02]} 16. b4 {[%emt 0:06:30]} Ne5 {[%emt 0:07:44]} 17. Na4 {[%emt 0:03:28]} Nfd7 {[%emt 0:09:36]} 18. Red1 {[%emt 0:03:26]} f5 {[%emt 0:04:14]} 19. Nxb6 {[%emt 0:03:03]} Nxf3+ {[%emt 0:07:04]} 20. gxf3 {[%emt 0:00:17]} e5 {[%emt 0:06:45]} 21. Nxc8 {[%emt 0:02:42]} exd4 {[%emt 0:00:16]} 22. Nxe7+ {[%emt 0:00:06]} Kh8 {[%emt 0:03:27]} 23. Nd5 {[%emt 0:02:31]} Qd8 {[%emt 0:00:31]} 24. Bxd4 {[%emt 0:01:01]} fxe4 {[%emt 0:00:22]} 25. fxe4 {[%emt 0:01:49]} Qh4 {[%emt 0:00:47]} 26. Nb1 {[%emt 0:04:47]} Ne5 {[%emt 0:06:06]} 27. Bxe5 {[%emt 0:00:11]} Qxf2+ {[%emt 0:00:10]} 28. Kh1 {[%emt 0:00:04]} dxe5 {[%emt 0:02:18]} 29. Nd2 {[%emt 0:00:17]} Qd4 {[%emt 0:02:49]} 30. Nf1 {[%emt 0:02:37]} Qxe4+ {[%emt 0:00:41]} 31. Kg1 {[%emt 0:00:03]} Qg4+ {[%emt 0:01:02]} 32. Ng3 {[%emt 0:00:39]} h5 {[%emt 0:00:21]} 33. Rf1 {[%emt 0:00:09]} Rxf1+ {[%emt 0:00:39]} 34. Kxf1 {[%emt 0:00:08]} Bxd5 {[%emt 0:00:21]} 35. cxd5 {[%emt 0:00:05]} Qf4+ {[%emt 0:00:04]} 0-1

[Event "Serbian League Women 2024"]
[Site "Bajina Basta"]
[Date "2024.09.30"]
[Round "4.19"]
[White "Mihailova, Alina"]
[Black "Ibrahimova, Sabina"]
[Result "1-0"]
[ECO "E62"]
[WhiteElo "1969"]
[BlackElo "2199"]
[Annotator "RC"]
[PlyCount "129"]
[EventDate "2024.09.26"]
[EventType "team-tourn"]
[EventCountry "SRB"]
[SourceTitle "playchess.com"]
[Source "ChessBase"]
[SourceQuality "1"]
[TimeControl "40/5400+30:1800+30"]

1. d4 {[%emt 0:00:02]} Nf6 {[%emt 0:01:49]} 2. c4 {[%emt 0:00:08]} g6 {[%emt 0:00:20]} 3. g3 {[%emt 0:00:08]} Bg7 {[%emt 0:00:48]} 4. Bg2 {[%emt 0:00:14]} O-O {[%emt 0:00:22]} 5. Nc3 {[%emt 0:00:07]} d6 {[%emt 0:00:23]} 6. Nf3 {[%emt 0:00:13]} Nc6 {[%emt 0:01:43]} 7. O-O {[%emt 0:00:36]} e5 {[%emt 0:00:37]} 8. d5 {[%emt 0:02:17]} Nb8 {[%emt 0:00:53]} 9. e4 {[%emt 0:04:09]} Nbd7 {[%emt 0:09:27]} 10. Ne1 {[%emt 0:03:00]} a6 {[%emt 0:18:15]} 11. Nd3 {[%emt 0:04:08]} c6 {[%emt 0:04:13]} 12. Be3 {[%emt 0:13:37]} cxd5 {[%emt 0:03:38]} 13. exd5 {[%emt 0:04:26]} Re8 {[%emt 0:09:07]} 14. f3 {[%emt 0:15:32]} Qc7 {[%emt 0:07:48]} 15. Rc1 {[%emt 0:03:21]} b6 {[%emt 0:04:01]} 16. Ne4 {[%emt 0:05:45]} Nc5 {[%emt 0:02:38]} 17. Ndxc5 {[%emt 0:10:09]} bxc5 {[%emt 0:02:18]} 18. b4 {[%emt 0:00:34]} Nxe4 {[%emt 0:11:02]} 19. fxe4 {[%emt 0:00:07]} cxb4 {[%emt 0:01:57]} 20. Qa4 {[%emt 0:01:44]} Bd7 {[%emt 0:02:42]} 21. Qxb4 {[%emt 0:00:08]} a5 {[%emt 0:08:31]} 22. Qd2 {[%emt 0:02:17]} a4 {[%emt 0:01:58]} 23. Qf2 {[%emt 0:04:29]} f6 {[%emt 0:00:24]} 24. c5 {[%emt 0:00:38]} dxc5 {[%emt 0:00:18]} 25. Rxc5 {[%emt 0:00:37]} Qb7 {[%emt 0:02:13]} 26. Rfc1 {[%emt 0:01:38]} Rac8 {[%emt 0:00:12]} 27. Bf1 {[%emt 0:03:19]} Rxc5 {[%emt 0:00:44]} 28. Rxc5 {[%emt 0:01:03]} Rc8 {[%emt 0:01:52]} 29. Qc2 {[%emt 0:02:58]} Bf8 {[%emt 0:03:23]} 30. Rxc8 {[%emt 0:05:46]} Qxc8 {[%emt 0:00:05]} 31. Qxc8 {[%emt 0:00:22]} Bxc8 {[%emt 0:00:03]} 32. Bb5 {[%emt 0:00:06]} a3 {[%emt 0:00:13]} 33. Kf2 {[%emt 0:00:08]} f5 {[%emt 0:02:19]} 34. exf5 {[%emt 0:04:14]} Bxf5 {[%emt 0:00:09]} 35. Ke2 {[%emt 0:00:26]} Bb1 {[%emt 0:00:43]} 36. Bc4 {[%emt 0:00:07]} Bd6 {[%emt 0:00:36]} 37. Bd2 {[%emt 0:02:19]} Kf7 {[%emt 0:00:35]} 38. Bc3 {[%emt 0:05:06]} Ke7 {[%emt 0:00:33]} 39. Kd2 {[%emt 0:00:38]} Kf6 {[%emt 0:00:23]} 40. Ba5 {[%emt 0:01:03]} Kg5 {[%emt 0:00:31]} 41. Kc3 {[%emt 0:08:04]} Kf6 {[%emt 0:16:07]} 42. Bb4 {[%emt 0:13:51]} Ke7 {[%emt 0:00:04]} 43. Bxd6+ {[%emt 0:00:52]} Kxd6 {[%emt 0:00:04]} 44. Kb4 {[%emt 0:00:06]} Bf5 {[%emt 0:15:41]} 45. Kxa3 {[%emt 0:02:48]} Kc5 {[%emt 0:00:16]} 46. Bb3 {[%emt 0:00:50]} e4 {[%emt 0:00:23]} 47. Kb2 {[%emt 0:00:16]} Kd4 {[%emt 0:00:21]} 48. Kc1 {[%emt 0:07:00]} e3 {[%emt 0:00:39]} 49. Kd1 {[%emt 0:00:16]} Bg4+ {[%emt 0:00:48]} 50. Ke1 {[%emt 0:00:06]} Kc5 {[%emt 0:00:35]} 51. h4 {[%emt 0:03:21]} Bf3 {[%emt 0:00:27]} 52. a4 {[%emt 0:00:28]} Kb4 {[%emt 0:00:34]} 53. d6 {[%emt 0:00:13]} Bg4 {[%emt 0:00:17]} 54. Bd1 {[%emt 0:01:00]} Bd7 {[%emt 0:00:45]} 55. Ke2 {[%emt 0:00:06]} Kc5 {[%emt 0:00:18]} 56. Kxe3 {[%emt 0:00:04]} Kxd6 {[%emt 0:00:02]} 57. Kf4 {[%emt 0:00:26]} h6 {[%emt 0:00:58]} 58. Bc2 {[%emt 0:00:27]} Be8 {[%emt 0:00:12]} 59. a5 {[%emt 0:00:49]} Kc5 {[%emt 0:00:54]} 60. Bd3 {[%emt 0:00:12]} Kd4 {[%emt 0:00:32]} 61. Bf1 {[%emt 0:00:44]} Bc6 {[%emt 0:00:39]} 62. a6 {[%emt 0:00:15]} Kc5 {[%emt 0:00:33]} 63. Ke5 {[%emt 0:00:17]} Kb6 {[%emt 0:00:29]} 64. Bd3 {[%emt 0:00:14]} Be8 {[%emt 0:00:31]} 65. Kf6 {[%emt 0:00:08]} 1-0

[Event "Serbian League Women 2024"]
[Site "Bajina Basta"]
[Date "2024.09.30"]
[Round "4.20"]
[White "Djukic, Sandra"]
[Black "Stankovic, Andrea"]
[Result "1-0"]
[ECO "D34"]
[WhiteElo "2126"]
[BlackElo "1856"]
[Annotator "RC"]
[PlyCount "87"]
[EventDate "2024.09.26"]
[EventType "team-tourn"]
[EventCountry "SRB"]
[SourceTitle "playchess.com"]
[Source "ChessBase"]
[SourceQuality "1"]
[TimeControl "40/5400+30:1800+30"]

1. c4 {[%emt 0:00:03]} Nf6 {[%emt 0:00:34]} 2. g3 {[%emt 0:00:24]} c5 {[%emt 0:01:45]} 3. Bg2 {[%emt 0:00:06]} e6 {[%emt 0:00:06]} 4. Nf3 {[%emt 0:00:16]} d5 {[%emt 0:00:21]} 5. cxd5 {[%emt 0:00:07]} exd5 {[%emt 0:00:11]} 6. d4 {[%emt 0:00:05]} Nc6 {[%emt 0:06:09]} 7. O-O {[%emt 0:00:09]} h6 {[%emt 0:00:52]} 8. b3 {[%emt 0:04:11]} Be7 {[%emt 0:02:47]} 9. Bb2 {[%emt 0:00:06]} O-O {[%emt 0:00:15]} 10. Nc3 {[%emt 0:14:47]} Bf5 {[%emt 0:02:49]} 11. dxc5 {[%emt 0:05:14]} Bxc5 {[%emt 0:00:41]} 12. Rc1 {[%emt 0:09:21]} Be7 {[%emt 0:06:12]} 13. Nd4 {[%emt 0:04:03]} Bg6 {[%emt 0:05:09]} 14. Nxc6 {[%emt 0:07:43]} bxc6 {[%emt 0:00:13]} 15. Na4 {[%emt 0:00:02]} Rc8 {[%emt 0:02:08]} 16. Qd4 {[%emt 0:08:14]} Rc7 {[%emt 0:03:52]} 17. Nc5 {[%emt 0:02:51]} Qc8 {[%emt 0:02:35]} 18. Qa4 {[%emt 0:04:31]} Nd7 {[%emt 0:26:35]} 19. Na6 {[%emt 0:10:39]} Nb6 {[%emt 0:00:08]} 20. Qa5 {[%emt 0:00:04]} Rb7 {[%emt 0:00:23]} 21. Nc5 {[%emt 0:00:22]} Nc4 {[%emt 0:16:15]} 22. bxc4 {[%emt 0:03:05]} Rxb2 {[%emt 0:00:08]} 23. cxd5 {[%emt 0:04:03]} cxd5 {[%emt 0:00:12]} 24. Qxa7 {[%emt 0:19:36]} Bxc5 {[%emt 0:13:20]} 25. Rxc5 {[%emt 0:00:03]} Qg4 {[%emt 0:03:17]} 26. Bf3 {[%emt 0:02:08]} Qd4 {[%emt 0:00:07]} 27. Ra5 {[%emt 0:01:12]} Qc4 {[%emt 0:00:30]} 28. Qa6 {[%emt 0:00:27]} Rd8 {[%emt 0:02:34]} 29. Kg2 {[%emt 0:00:35]} Be4 {[%emt 0:01:20]} 30. Qxc4 {[%emt 0:00:27]} Bxf3+ {[%emt 0:00:08]} 31. Kxf3 {[%emt 0:00:14]} dxc4 {[%emt 0:00:04]} 32. Rc5 {[%emt 0:00:07]} Rxa2 {[%emt 0:01:27]} 33. Rxc4 {[%emt 0:00:03]} Rdd2 {[%emt 0:00:22]} 34. e3 {[%emt 0:00:35]} Kf8 {[%emt 0:00:46]} 35. Rf4 {[%emt 0:00:02]} Ke7 {[%emt 0:00:24]} 36. g4 {[%emt 0:00:02]} Ke6 {[%emt 0:02:33]} 37. h4 {[%emt 0:01:05]} g6 {[%emt 0:00:34]} 38. Kg3 {[%emt 0:00:17]} f5 {[%emt 0:00:42]} 39. Rb1 {[%emt 0:02:04]} Ra5 {[%emt 0:00:48]} 40. Rb6+ {[%emt 0:00:20]} Rd6 {[%emt 0:00:26]} 41. Rxd6+ {[%emt 0:09:25]} Kxd6 {[%emt 0:00:08]} 42. h5 {[%emt 0:01:49]} fxg4 {[%emt 0:14:04]} 43. hxg6 {[%emt 0:03:21]} Ke7 {[%emt 0:01:03]} 44. g7 {[%emt 0:02:06]} 1-0